bitfinex-derivatives/quotes_SOLF0:USTF0_20240926
["timestamp","ask_amount","ask_price","bid_price","bid_amount"]
[1727310894390,10.35,148.32,148.28,10.35]
[1727310895785,3.372,148.3,148.28,10.35]
[1727310896684,10.35,148.32,148.27,10.35]
[1727310897384,3.3724,148.29,148.27,10.35]
[1727310898480,10.35,148.31,148.26,10.35]
[1727310899690,3.3725,148.28,148.26,10.35]
[1727310899893,10.35,148.31,148.26,13.7229]
[1727310900392,3.3723,148.29,148.26,13.7229]
[1727310902291,3.3723,148.29,148.27,3.3726]
[1727310903089,3.3725,148.28,148.25,3.373]
[1727310903294,3.3725,148.28,148.25,13.723]
[1727310903998,3.3723,148.29,148.27,10.35]
[1727310904191,10.35,148.32,148.27,10.35]
[1727310904494,3.3722,148.3,148.28,10.35]
[1727310905694,10.35,148.3,148.24,1.3471]
[1727310905894,10.35,148.29,148.24,11.6971]
[1727310906295,10.35,148.26,148.22,80.96]
[1727310906501,10.35,148.26,148.22,91.31]
[1727310906690,3.3734,148.24,148.22,91.31]
[1727310907297,10.35,148.26,148.22,91.31]
[1727310907298,3.3732,148.25,148.22,13.7238]
[1727310907694,10.35,148.29,148.24,10.35]
[1727310907901,10.35,148.3,148.26,10.35]
[1727310908198,10.35,148.3,148.25,10.35]
[1727310908606,3.3729,148.26,148.25,10.35]
[1727310909696,3.3729,148.26,148.23,13.7235]
[1727310910695,3.3732,148.25,148.22,3.3738]
[1727310910896,3.3732,148.25,148.22,13.7238]
[1727310915106,10.35,148.29,148.24,10.35]
[1727310915496,3.3728,148.27,148.24,13.7233]
[1727310917104,3.3731,148.26,148.24,10.35]
[1727310917310,10.35,148.28,148.22,10.35]
[1727310917705,10.35,148.26,148.22,10.35]
[1727310918106,3.3733,148.25,148.22,13.7238]
[1727310918702,3.3734,148.24,148.22,3.3738]
[1727310918908,3.3734,148.24,148.21,15.1325]
[1727310919505,10.35,148.24,148.2,3.3742]
[1727310920108,3.3738,148.22,148.19,138.66042227]
[1727310920302,10.35,148.23,148.19,135.28602227]
[1727310920710,3.374,148.22,148.19,135.28602227]
[1727310920912,10.35,148.26,148.21,10.35]
[1727310921614,3.3736,148.23,148.2,3.3742]
[1727310921914,3.3736,148.23,148.2,13.7242]
[1727310923616,10.35,148.24,148.2,10.35]
[1727310924821,3.3737,148.23,148.2,13.7241]
[1727310925513,3.3737,148.23,148.2,3.3741]
[1727310925718,3.3737,148.23,148.2,13.7241]
[1727310926923,3.3738,148.22,148.19,57.68042227]
[1727310927123,3.3738,148.22,148.19,68.03042227]
[1727310928223,3.3738,148.22,148.19,57.68042227]
[1727310928523,3.3738,148.22,148.19,68.03042227]
[1727310930723,3.3741,148.21,148.19,54.30602227]
[1727310931828,3.3739,148.22,148.19,64.65602227]
[1727310932529,3.3741,148.21,148.19,54.30602227]
[1727310934730,10.35,148.2,148.14,82.3905]
[1727310934926,10.35,148.2,148.16,10.35]
[1727310935229,13.7245,148.2,148.16,13.7252]
[1727310936735,13.7245,148.2,148.17,3.3749]
[1727310938226,13.7245,148.2,148.16,13.7251]
[1727310939327,10.35,148.2,148.17,3.3749]
[1727310939628,10.35,148.22,148.17,13.7249]
[1727310939827,10.35,148.23,148.18,13.7247]
[1727310940331,10.35,148.23,148.18,10.35]
[1727310940525,2.6717,148.26,148.19,10.35]
[1727310940829,10.35,148.25,148.19,10.35]
[1727310941324,10.35,148.25,148.19,13.7244]
[1727310941524,2.6717,148.26,148.15,54.3254981]
[1727310941525,10.35,148.2,148.15,1.3303]
[1727310941831,10.35,148.19,148.15,1.3303]
[1727310942832,3.375,148.17,148.15,1.3303]
[1727310943533,3.3752,148.16,148.12,10.35]
[1727310944333,3.3752,148.16,148.12,13.726]
[1727310944727,3.3754,148.15,148.12,13.726]
[1727310945330,10.35,148.15,148.08,4.0594]
[1727310945524,10.35,148.13,148.08,4.0594]
[1727310945739,10.35,148.13,148.08,14.4094]
[1727310946125,10.35,148.13,148.09,10.35]
[1727310946828,13.7261,148.13,148.09,13.7267]
[1727310947028,3.3761,148.13,148.09,13.7267]
[1727310947429,2.7032,148.18,148.02,52.96905248]
[1727310947430,3.3763,148.11,148.02,52.96905248]
[1727310947633,10.35,148.1,148.05,10.35]
[1727310948631,10.35,148.12,148.06,10.35]
[1727310949433,10.35,148.12,148.08,3.377]
[1727310950124,13.7262,148.12,148.08,3.377]
[1727310951538,3.3764,148.11,148.07,3.3772]
[1727310952630,13.7262,148.12,148.06,10.35]
[1727310952936,10.35,148.13,148.09,10.35]
[1727310953525,10.35,148.13,148.09,3.3768]
[1727310954426,3.3761,148.12,148.08,13.7269]
[1727310955032,3.3761,148.12,148.09,3.3768]
[1727310955235,13.726,148.13,148.09,10.35]
[1727310955436,2.7032,148.18,148.1,10.35]
[1727310955632,2.7032,148.18,148.12,13.7261]
[1727310955633,13.7254,148.16,148.12,13.7261]
[1727310956642,3.3755,148.15,148.12,13.7261]
[1727310958627,3.3755,148.15,148.11,3.3762]
[1727310958831,3.3755,148.15,148.11,13.7262]
[1727310959531,10.35,148.14,148.05,81.04]
[1727310959732,2.7032,148.18,148.05,81.04]
[1727310959733,10.35,148.09,148.05,81.04]
[1727310960532,10.35,148.09,148.04,11.7036]
[1727310961540,3.3769,148.09,148.07,10.35]
[1727310961728,2.7032,148.18,148.07,10.35]
[1727310961934,10.35,148.12,148.07,10.35]
[1727310962239,3.3766,148.1,148.07,10.35]
[1727310963034,3.3769,148.09,148.05,10.35]
[1727310963542,10.35,148.1,148.05,10.35]
[1727310964543,10.35,148.08,148.04,4.7315]
[1727310964738,10.35,148.07,148.03,11.7641]
[1727310965244,3.3775,148.06,148.03,4.7922]
[1727310965444,10.35,148.07,148.03,4.7922]
[1727310965848,10.35,148.07,148.03,1.4141]
[1727310966143,10.35,148.06,148.03,1.4141]
[1727310966548,3.3778,148.05,148.03,1.4141]
[1727310967251,3.3775,148.06,148.03,1.4141]
[1727310967448,1.3427,148.1,148.04,10.35]
[1727310967751,3.3773,148.07,148.04,10.35]
[1727310968744,10.35,148.09,148.04,10.35]
[1727310968745,3.3771,148.08,148.04,13.7279]
[1727310969048,10.35,148.09,148.04,13.7279]
[1727310969645,1.3427,148.1,148.05,13.7276]
[1727310969846,10.35,148.11,148.06,10.35]
[1727310970150,10.35,148.11,148.05,3.3776]
[1727310970151,10.35,148.08,148.04,10.35]
[1727310970341,13.7271,148.08,148.04,13.7277]
[1727310971153,3.3768,148.09,148.05,13.7276]
[1727310973449,10.35,148.1,148.04,3.3779]
[1727310973450,3.3772,148.08,148.04,3.3779]
[1727310973649,3.3772,148.08,148.04,13.7279]
[1727310973946,3.3772,148.08,148.04,10.35]
[1727310974555,13.7272,148.08,148.04,13.7278]
[1727310975451,13.7272,148.08,148.04,3.3778]
[1727310975651,3.3773,148.07,148.03,6.1102]
[1727310975852,3.3773,148.07,148.03,16.4602]
[1727310977552,1.41,148.16,148.05,10.35]
[1727310977753,10.35,148.1,148.05,10.35]
[1727310978149,3.377,148.09,148.05,3.3776]
[1727310978551,1.41,148.16,148.03,2.7321]
[1727310978552,10.35,148.08,148.03,13.0821]
[1727310978755,13.7272,148.08,148.04,3.3779]
[1727310979560,10.35,148.07,148.03,6.1101]
[1727310979961,13.7274,148.07,148.03,6.1101]
[1727310980261,10.35,148.06,148.03,1.4141]
[1727310981153,13.7276,148.06,148.03,1.4141]
[1727310982052,10.35,148.04,147.99,1.4032]
[1727310982260,10.35,148.03,147.99,1.4032]
[1727310982459,10.35,148.03,147.99,4.7822]
[1727310982460,13.7283,148.03,147.99,4.7822]
[1727310982958,3.3783,148.03,147.99,15.1322]
[1727310983563,3.3783,148.03,148.0,3.3788]
[1727310984364,3.3783,148.03,147.98,81.08]
[1727310984365,10.35,148.03,147.98,81.08]
[1727310984662,3.3787,148.01,147.98,81.08]
[1727310985165,3.3787,148.01,147.97,11.6748]
[1727310985757,3.3785,148.02,147.98,3.3793]
[1727310988556,3.3786,148.01,147.98,3.3793]
[1727310989567,1.3047,148.09,147.92,81.08]
[1727310989867,1.3047,148.09,147.99,10.35]
[1727310989868,10.35,148.05,147.99,10.35]
[1727310990060,1.3047,148.09,148.0,3.3788]
[1727310990266,3.3781,148.04,148.0,10.35]
[1727310990865,3.3781,148.04,148.0,13.7287]
[1727310991568,13.7278,148.05,148.0,13.7287]
[1727310992257,13.7278,148.05,148.01,3.3786]
[1727310993068,10.35,148.05,148.02,3.3783]
[1727310993366,3.3776,148.06,148.02,3.3783]
[1727310993865,13.7277,148.05,148.01,3.3785]
[1727310994067,13.7277,148.05,147.98,1.3849]
[1727310994068,10.35,148.05,148.0,10.35]
[1727310994465,10.35,148.02,147.98,1.3849]
[1727310994964,1.3047,148.09,147.98,11.7349]
[1727310994965,13.7282,148.03,147.98,11.7349]
[1727310995163,13.7282,148.03,147.99,3.379]
[1727310995966,13.7284,148.02,147.98,4.7642]
[1727310997670,3.3782,148.03,147.99,10.35]
[1727310997867,10.35,148.04,148.0,10.35]
[1727310998877,3.3782,148.03,148.0,13.7288]
[1727310999269,13.728,148.04,148.0,13.7288]
[1727310999975,13.728,148.04,148.0,3.3788]
[1727311000164,13.728,148.04,148.01,3.3786]
[1727311000372,13.7277,148.05,148.01,10.35]
[1727311000977,13.7277,148.05,148.01,13.7285]
[1727311004682,13.728,148.04,148.01,3.3785]
[1727311005884,10.35,148.04,148.01,3.3785]
[1727311007080,13.7279,148.04,148.0,13.7288]
[1727311009082,13.7279,148.04,148.0,3.3788]
[1727311009880,10.35,148.04,147.99,3.379]
[1727311010086,10.35,148.04,147.99,13.729]
[1727311010583,3.3782,148.03,147.99,13.729]
[1727311011186,10.35,148.01,147.98,2.7692]
[1727311011375,10.35,148.01,147.98,1.3849]
[1727311011575,1.3047,148.09,147.98,11.7349]
[1727311011779,10.35,148.04,147.98,11.7349]
[1727311011975,13.7282,148.03,147.99,3.3791]
[1727311012182,10.35,148.03,147.98,1.3849]
[1727311012484,10.35,148.01,147.98,1.3849]
[1727311013083,13.7288,148.01,147.98,1.3849]
[1727311013279,10.35,148.01,147.98,1.3849]
[1727311013986,13.7287,148.01,147.98,1.3849]
[1727311015282,13.7289,148.0,147.96,3.3797]
[1727311016088,10.35,148.0,147.97,3.3795]
[1727311016289,10.35,148.0,147.94,1.3766]
[1727311016483,10.35,148.0,147.95,10.35]
[1727311016680,3.3791,147.99,147.95,13.7298]
[1727311016888,10.35,148.0,147.95,13.7298]
[1727311017084,3.3791,147.99,147.95,13.7298]
[1727311017884,13.7294,147.98,147.94,3.3802]
[1727311018089,10.35,147.98,147.93,13.0708]
[1727311018388,3.3802,147.95,147.93,1.4031]
[1727311019290,3.3802,147.94,147.93,1.4031]
[1727311019484,3.3802,147.94,147.9,81.12]
[1727311019485,10.35,147.94,147.9,81.12]
[1727311019692,10.35,147.91,147.88,2.742]
[1727311019887,3.3813,147.89,147.88,1.3838]
[1727311020081,10.35,147.9,147.82,2.6671]
[1727311020289,10.35,147.9,147.84,10.35]
[1727311020485,10.35,147.87,147.83,1.3838]
[1727311020783,10.35,147.86,147.81,144.46447136]
[1727311020981,3.3829,147.82,147.81,134.11447136]
[1727311021188,13.7329,147.82,147.81,81.12]
[1727311021488,3.3834,147.8,147.79,3.14075518]
[1727311022488,13.7334,147.8,147.79,3.14075518]
[1727311023691,3.3834,147.8,147.79,3.14075518]
[1727311023892,3.3832,147.81,147.79,3.14075518]
[1727311024490,1.3471,147.83,147.75,17.6338]
[1727311024491,3.383,147.82,147.75,17.6338]
[1727311025392,3.383,147.82,147.77,3.384]
[1727311025590,3.3832,147.81,147.77,3.384]
[1727311025787,1.3471,147.83,147.77,3.384]
[1727311026793,3.383,147.82,147.77,3.384]
[1727311026989,3.383,147.82,147.78,3.3839]
[1727311027492,3.383,147.82,147.75,17.6338]
[1727311027792,3.383,147.82,147.77,3.3839]
[1727311028694,16.25,147.86,147.77,16.25]
[1727311029494,3.3826,147.84,147.77,16.25]
[1727311029690,16.25,147.86,147.77,16.25]
[1727311030693,16.25,147.86,147.78,3.3838]
[1727311031283,3.3829,147.83,147.78,3.3838]
[1727311031483,16.25,147.86,147.78,3.3838]
[1727311031694,16.25,147.86,147.77,19.6341]
[1727311031893,16.25,147.86,147.77,16.25]
[1727311032697,16.25,147.85,147.75,1.3838]
[1727311032992,3.3836,147.8,147.75,17.6338]
[1727311033790,3.3836,147.8,147.75,21.0182]
[1727311033991,16.25,147.83,147.75,1.3838]
[1727311034188,16.25,147.79,147.71,1.4165]
[1727311034687,3.3846,147.75,147.71,1.4165]
[1727311035285,16.25,147.77,147.71,1.4165]
[1727311037080,3.3847,147.75,147.71,1.4165]
[1727311037291,16.25,147.79,147.71,1.4165]
[1727311037686,3.3846,147.75,147.71,4.8018]
[1727311037986,16.25,147.79,147.71,1.4165]
[1727311038190,3.385,147.74,147.71,1.4165]
[1727311038800,3.3846,147.75,147.71,4.8018]
[1727311040298,3.3844,147.76,147.72,3.3852]
[1727311040498,16.25,147.81,147.71,17.6665]
[1727311040703,16.25,147.81,147.73,16.25]
[1727311041094,3.384,147.78,147.74,3.3846]
[1727311041594,3.384,147.78,147.75,3.3845]
[1727311042296,3.384,147.78,147.73,16.25]
[1727311042297,3.384,147.78,147.74,3.3847]
[1727311042695,3.3842,147.77,147.73,19.6349]
[1727311042894,16.25,147.8,147.71,17.6665]
[1727311043094,16.25,147.8,147.71,1.4165]
[1727311043696,16.25,147.8,147.71,4.8018]
[1727311044297,16.25,147.8,147.72,3.3852]
[1727311044896,3.3845,147.76,147.72,3.3852]
[1727311045098,16.25,147.8,147.72,3.3852]
[1727311045996,16.25,147.8,147.73,3.385]
[1727311046301,3.3843,147.76,147.73,3.385]
[1727311047095,16.25,147.8,147.74,3.3846]
[1727311047800,16.25,147.8,147.71,17.6665]
[1727311048196,3.3842,147.77,147.74,3.3846]
[1727311048396,16.25,147.8,147.71,17.6665]
[1727311048600,16.25,147.81,147.73,16.25]
[1727311048800,16.25,147.81,147.75,3.3844]
[1727311049700,16.25,147.79,147.71,1.4165]
[1727311049994,16.25,147.79,147.71,17.6665]
[1727311050198,3.3844,147.76,147.73,3.385]
[1727311053305,3.3842,147.77,147.73,3.385]
[1727311054406,3.3842,147.77,147.73,13.795]
[1727311054606,3.3843,147.76,147.73,13.795]
[1727311054906,3.3843,147.76,147.73,3.385]
[1727311055409,13.7943,147.76,147.72,13.7951]
[1727311056404,13.7943,147.76,147.72,3.3851]
[1727311056708,10.41,147.76,147.72,10.41]
[1727311057308,10.41,147.76,147.71,1.4165]
[1727311057509,10.41,147.76,147.72,10.41]
[1727311058009,3.3845,147.76,147.73,10.41]
[1727311058411,10.41,147.77,147.72,3.3851]
[1727311058609,10.41,147.77,147.72,13.7951]
[1727311059408,10.41,147.76,147.72,13.7951]
[1727311059712,3.3847,147.75,147.72,10.41]
[1727311061919,13.7944,147.76,147.72,13.7951]
[1727311062109,10.41,147.76,147.72,13.7951]
[1727311062910,3.3846,147.75,147.72,13.7951]
[1727311064617,4.71693989,147.84,147.73,3.3849]
[1727311064814,10.41,147.79,147.74,10.41]
[1727311065212,3.3839,147.78,147.75,10.41]
[1727311065515,4.71693989,147.84,147.71,1.4165]
[1727311065516,10.41,147.81,147.76,10.41]
[1727311065713,10.41,147.79,147.71,1.4165]
[1727311065914,10.41,147.78,147.74,10.41]
[1727311066519,3.3841,147.77,147.74,10.41]
[1727311066816,10.41,147.78,147.74,10.41]
[1727311067617,3.3841,147.77,147.74,10.41]
[1727311067817,10.41,147.79,147.75,10.41]
[1727311068419,3.3841,147.77,147.75,10.41]
[1727311069318,3.3839,147.78,147.75,10.41]
[1727311071122,3.3841,147.77,147.75,10.41]
[1727311071919,10.41,147.79,147.74,10.41]
[1727311072217,10.41,147.79,147.75,10.41]
[1727311072618,3.3841,147.77,147.75,10.41]
[1727311074726,3.3843,147.76,147.75,10.41]
[1727311075027,10.41,147.79,147.75,10.41]
[1727311075427,3.3841,147.77,147.75,10.41]
[1727311076124,3.384,147.78,147.75,10.41]
[1727311076422,3.384,147.78,147.74,3.3848]
[1727311076627,3.3845,147.76,147.74,10.41]
[1727311077432,3.3845,147.76,147.75,10.41]
[1727311078825,3.3847,147.75,147.71,4.8019]
[1727311079022,3.3847,147.75,147.73,10.41]
[1727311079225,10.41,147.77,147.73,10.41]
[1727311079532,10.41,147.76,147.72,10.41]
[1727311079927,3.385,147.73,147.72,10.41]
[1727311081528,3.3849,147.74,147.72,10.41]
[1727311081723,6.7659,147.83,147.73,10.41]
[1727311081724,10.41,147.77,147.73,10.41]
[1727311082426,3.3847,147.75,147.73,10.41]
[1727311082730,10.41,147.78,147.73,10.41]
[1727311082920,10.41,147.78,147.71,1.4165]
[1727311083126,10.41,147.78,147.73,10.41]
[1727311084429,10.41,147.8,147.75,10.41]
[1727311084628,10.41,147.78,147.75,10.41]
[1727311085533,3.3843,147.76,147.75,10.41]
[1727311086835,10.41,147.77,147.71,1.4165]
[1727311087037,10.41,147.76,147.71,11.8265]
[1727311087237,10.41,147.77,147.72,10.41]
[1727311088030,10.41,147.77,147.71,4.8019]
[1727311088031,3.3848,147.74,147.71,4.8018]
[1727311088326,3.3848,147.74,147.73,10.41]
[1727311088534,10.41,147.77,147.72,10.41]
[1727311089743,3.3849,147.74,147.72,10.41]
[1727311090745,3.3846,147.75,147.72,13.7952]
[1727311090947,3.3846,147.75,147.73,10.41]
[1727311092940,3.3846,147.75,147.71,4.8019]
[1727311092941,10.41,147.79,147.74,10.41]
[1727311093147,10.41,147.78,147.73,10.41]
[1727311094547,3.3845,147.76,147.73,13.795]
[1727311097752,3.3847,147.75,147.73,10.41]
[1727311097952,10.41,147.78,147.73,10.41]
[1727311098457,3.3847,147.75,147.73,10.41]
[1727311098650,10.41,147.78,147.73,10.41]
[1727311098846,3.3845,147.76,147.73,10.41]
[1727311099156,1.4169,147.81,147.74,10.41]
[1727311099157,10.41,147.79,147.74,10.41]
[1727311099358,10.41,147.79,147.76,10.41]
[1727311099650,3.384,147.78,147.76,10.41]
[1727311102454,3.384,147.78,147.71,1.4165]
[1727311102455,3.3835,147.8,147.77,13.794]
[1727311102646,3.3835,147.8,147.78,10.41]
[1727311103848,10.41,147.81,147.77,10.41]
[1727311104454,3.3838,147.79,147.77,10.41]
[1727311105646,3.3839,147.78,147.76,10.41]
[1727311106647,3.3837,147.79,147.76,10.41]
[1727311107352,3.3839,147.78,147.76,10.41]
[1727311108359,10.41,147.81,147.76,10.41]
[1727311108555,10.41,147.8,147.76,10.41]
[1727311108763,10.41,147.8,147.75,10.41]
[1727311109860,1.4218,147.87,147.7,81.24]
[1727311109861,10.41,147.77,147.7,81.24]
[1727311110051,10.41,147.77,147.73,10.41]
[1727311110254,3.3846,147.75,147.73,10.41]
[1727311114264,10.41,147.76,147.7,82.5863]
[1727311114466,10.41,147.76,147.71,10.41]
[1727311115366,3.3852,147.73,147.71,10.41]
[1727311115568,3.3852,147.73,147.72,10.41]
[1727311116366,1.4149,147.81,147.72,10.41]
[1727311116566,10.41,147.78,147.74,10.41]
[1727311117967,3.3846,147.75,147.74,10.41]
[1727311118966,3.3848,147.74,147.72,10.41]
[1727311119165,10.41,147.75,147.71,1.4119]
[1727311119557,10.41,147.76,147.72,10.41]
[1727311120368,10.41,147.77,147.73,10.41]
[1727311122866,3.3848,147.74,147.73,10.41]
[1727311124371,3.3846,147.75,147.73,10.41]
[1727311125366,10.41,147.76,147.71,1.4119]
[1727311125572,10.41,147.75,147.71,1.4119]
[1727311126670,10.41,147.74,147.71,1.4119]
[1727311126867,10.41,147.74,147.69,10.41]
[1727311127070,10.41,147.72,147.67,1.2982]
[1727311127269,10.41,147.72,147.68,6.60146244]
[1727311127472,3.3861,147.69,147.67,11.7082]
[1727311128973,3.3862,147.68,147.67,11.7082]
[1727311130262,10.41,147.69,147.65,1.3232]
[1727311130468,3.3866,147.66,147.65,11.7332]
[1727311130972,10.41,147.69,147.65,11.7332]
[1727311131172,3.3865,147.67,147.65,11.7332]
[1727311131367,3.3865,147.67,147.66,10.41]
[1727311134174,3.3865,147.67,147.62,1.3788]
[1727311134375,3.3865,147.67,147.65,10.41]
[1727311134566,3.3865,147.67,147.66,10.41]
[1727311139469,3.3862,147.68,147.66,10.41]
[1727311139674,3.3862,147.68,147.67,10.41]
[1727311143182,3.3862,147.68,147.64,3.387]
[1727311143381,3.3862,147.68,147.67,10.41]
[1727311144579,2.6482,147.73,147.62,1.3788]
[1727311144787,10.41,147.69,147.65,10.41]
[1727311145376,10.41,147.66,147.6,82.7094]
[1727311145674,10.41,147.65,147.61,10.41]
[1727311146081,3.3874,147.63,147.61,10.41]
[1727311146478,3.3874,147.63,147.6,82.7094]
[1727311146676,3.3874,147.63,147.61,10.41]
[1727311146884,3.3877,147.62,147.61,10.41]
[1727311147283,10.41,147.63,147.6,81.3]
[1727311147586,3.3878,147.61,147.6,81.3]
[1727311148290,3.3878,147.61,147.59,10.41]
[1727311149185,10.41,147.66,147.6,10.41]
[1727311149386,10.41,147.66,147.62,10.41]
[1727311149683,10.41,147.65,147.61,15.1403]
[1727311150491,88.23585944,147.68,147.63,10.41]
[1727311150694,88.23585944,147.68,147.61,1.3427]
[1727311150695,10.41,147.66,147.61,1.3427]
[1727311150888,3.3871,147.64,147.61,1.3427]
[1727311151690,3.3874,147.63,147.61,1.3427]
[1727311151991,10.41,147.64,147.61,1.3427]
[1727311152191,10.41,147.63,147.61,1.3427]
[1727311152581,10.41,147.62,147.57,13.7987]
[1727311152786,10.41,147.62,147.57,10.41]
[1727311153790,3.3881,147.6,147.57,10.41]
[1727311154385,10.41,147.62,147.57,10.41]
[1727311154585,10.41,147.63,147.58,10.41]
[1727311155293,10.41,147.6,147.56,1.3683]
[1727311156092,13.7981,147.6,147.56,4.7571]
[1727311156588,10.41,147.6,147.56,4.7571]
[1727311156792,13.7978,147.61,147.57,13.7985]
[1727311156992,10.41,147.6,147.56,11.7783]
[1727311157885,10.41,147.62,147.57,13.7986]
[1727311158093,10.41,147.62,147.57,10.41]
[1727311158994,3.3879,147.61,147.58,3.3884]
[1727311159190,2.7505,147.67,147.59,10.41]
[1727311159491,3.3874,147.63,147.59,13.7981]
[1727311159687,10.41,147.63,147.58,10.41]
[1727311159883,10.41,147.62,147.57,10.41]
[1727311160391,13.7976,147.62,147.58,3.3884]
[1727311160790,10.41,147.62,147.58,3.3884]
[1727311161690,3.3876,147.62,147.58,3.3884]
[1727311161896,10.41,147.63,147.59,13.7982]
[1727311162296,10.41,147.62,147.58,13.7984]
[1727311163197,10.41,147.62,147.56,1.3683]
[1727311163394,10.41,147.62,147.57,10.41]
[1727311164897,3.3881,147.6,147.57,13.7987]
[1727311166107,3.3871,147.64,147.61,3.3877]
[1727311166305,13.86049678,147.65,147.6,10.41]
[1727311166505,10.41,147.65,147.6,10.41]
[1727311166705,3.3873,147.63,147.59,13.798]
[1727311167400,3.46361286,147.65,147.58,13.7984]
[1727311167401,10.41,147.62,147.58,13.7984]
[1727311167897,3.46361286,147.65,147.57,13.7986]
[1727311167898,13.7979,147.61,147.57,13.7986]
[1727311171107,3.388,147.6,147.57,13.7986]
[1727311171805,3.3883,147.59,147.57,10.41]
[1727311172010,10.41,147.61,147.57,10.41]
[1727311172404,3.3886,147.58,147.56,1.3683]
[1727311172803,10.41,147.59,147.56,1.3683]
[1727311173006,3.3887,147.57,147.56,1.3683]
[1727311174806,3.3887,147.57,147.54,91.75]
[1727311175510,3.3887,147.57,147.54,95.1393]
[1727311176108,3.3885,147.58,147.54,95.1393]
[1727311176308,3.3885,147.58,147.55,3.3891]
[1727311177107,10.41,147.59,147.55,3.3891]
[1727311177108,3.3883,147.59,147.55,13.7991]
[1727311178104,3.3885,147.58,147.55,13.7991]
[1727311179007,3.3882,147.59,147.56,3.3889]
[1727311179711,3.3882,147.59,147.55,10.41]
[1727311179911,3.3882,147.59,147.55,13.799]
[1727311180310,3.3882,147.59,147.55,10.41]
[1727311180609,3.41151172,147.62,147.57,10.41]
[1727311180804,1.3712,147.67,147.61,10.41]
[1727311181001,1.3712,147.67,147.53,2.7371]
[1727311181002,13.85282794,147.66,147.62,10.41]
[1727311181205,3.3869,147.65,147.62,10.41]
[1727311181702,13.7967,147.66,147.62,13.7973]
[1727311181915,10.41,147.65,147.61,10.41]
[1727311182110,10.41,147.62,147.59,1.3058]
[1727311182310,3.3879,147.61,147.59,1.3058]
[1727311182711,3.3879,147.61,147.58,1.3098]
[1727311184310,3.3876,147.62,147.59,10.41]
[1727311184510,10.41,147.63,147.59,10.41]
[1727311185215,13.7975,147.63,147.59,13.7982]
[1727311186616,3.3875,147.62,147.59,10.41]
[1727311188817,3.36031689,147.66,147.6,10.41]
[1727311188818,10.41,147.64,147.6,10.41]
[1727311189318,3.3874,147.63,147.6,13.7979]
[1727311190411,3.3871,147.64,147.61,10.41]
[1727311190612,10.41,147.65,147.61,10.41]
[1727311190816,13.797,147.65,147.61,10.41]
[1727311191216,13.797,147.65,147.61,13.7977]
[1727311191621,3.3871,147.64,147.61,13.7977]